[Event "FISCA Open 2022"]
[Site "Cap Aurora"]
[Date "2022.06.23"]
[Round "2.5"]
[White "Daianu, Cristian-Clement"]
[Black "Ifrim, Mihai"]
[Result "1-0"]
[ECO "B05"]
[WhiteElo "2149"]
[BlackElo "1704"]
[Annotator "NA RC"]
[PlyCount "89"]
[EventDate "2022.06.22"]
[EventType "swiss"]
[EventCountry "ROU"]
[SourceTitle "playchess.com"]
[Source "ChessBase"]
[SourceQuality "1"]
[TimeControl "5400+30"]

1. e4 {[%emt 0:00:05]} Nf6 {[%emt 0:00:02]} 2. e5 {[%emt 0:00:35]} Nd5 {[%emt 0:00:06]} 3. d4 {[%emt 0:00:08]} d6 {[%emt 0:00:06]} 4. Nf3 {[%emt 0:01:03]} Bg4 {[%emt 0:00:45]} 5. Bc4 {[%emt 0:03:01]} e6 {[%emt 0:00:43]} 6. h3 {[%emt 0:07:50]} Bh5 {[%emt 0:00:52]} 7. Bb3 {[%emt 0:00:23]} c5 {[%emt 0:01:10]} 8. c4 {[%emt 0:01:16]} Nb6 {[%emt 0:00:18]} 9. dxc5 {[%emt 0:13:07]} dxc5 {[%emt 0:00:10]} 10. Qxd8+ {[%emt 0:00:08]} Kxd8 {[%emt 0:00:07]} 11. Be3 {[%emt 0:02:20]} Nc6 {[%emt 0:00:39]} 12. Nbd2 $11 {[%emt 0:00:05]} Kc7 {[%emt 0:03:17]} 13. O-O-O {[%emt 0:06:23]} Be7 {[%emt 0:02:59]} 14. Ne4 {[%emt 0:09:57]} Bxf3 {[%emt 0:04:01]} 15. gxf3 {[%emt 0:03:11]} Nxe5 {[%emt 0:00:18]} 16. Bf4 {[%emt 0:00:20]} f6 {[%emt 0:00:32]} 17. Ng5 {[%emt 0:01:54]} fxg5 {[%emt 0:01:48]} 18. Bxe5+ {[%emt 0:00:06]} Kc6 {[%emt 0:00:37]} 19. Bc2 {[%emt 0:08:43]} Nxc4 {[%emt 0:03:51]} 20. Be4+ {[%emt 0:00:05]} Kb6 {[%emt 0:00:57]} 21. Rd7 {[%emt 0:00:28]} Nxe5 {[%emt 0:05:32]} 22. Rxb7+ {[%emt 0:00:15]} Ka6 {[%emt 0:00:17]} 23. Rxe7 {[%emt 0:00:15]} Rae8 {[%emt 0:00:24]} 24. Rxg7 {[%emt 0:00:16]} h6 {[%emt 0:03:45]} 25. Re1 {[%emt 0:02:13]} Rb8 {[%emt 0:07:04]} 26. Re3 {[%emt 0:09:13]} Rhd8 {[%emt 0:06:22]} 27. Ra3+ {[%emt 0:02:53]} Kb5 {[%emt 0:00:40]} 28. Rgxa7 {[%emt 0:00:12]} Kc4 {[%emt 0:04:42]} 29. Rc7 {[%emt 0:08:48]} Rb5 {[%emt 0:04:12]} 30. Re3 {[%emt 0:06:06]} Rdb8 {[%emt 0:04:04]} 31. Re2 {[%emt 0:06:50]} R8b6 {[%emt 0:11:25]} 32. Rc2+ {[%emt 0:04:50]} Kd4 {[%emt 0:01:54]} 33. Rd2+ {[%emt 0:00:05]} Kc4 {[%emt 0:00:10]} 34. Ra7 {[%emt 0:00:12]} Rb4 {[%emt 0:09:42]} 35. Ra5 {[%emt 0:02:38]} R6b5 {[%emt 0:01:46]} 36. Rc2+ {[%emt 0:00:08]} Kd4 {[%emt 0:00:12]} 37. Rd2+ {[%emt 0:00:13]} Kc4 {[%emt 0:00:08]} 38. Ra3 {[%emt 0:00:36]} Rb6 {[%emt 0:00:54]} 39. Rc3+ {[%emt 0:00:59]} Kb5 {[%emt 0:00:10]} 40. b3 {[%emt 0:00:47]} c4 {[%emt 0:01:36]} 41. Kb2 {[%emt 0:01:44]} cxb3 {[%emt 0:03:19]} 42. axb3 {[%emt 0:00:02]} Ka5 {[%emt 0:01:53]} 43. Rd8 {[%emt 0:00:13]} Rb8 {[%emt 0:05:02]} 44. Rc5+ {[%emt 0:00:20]} R4b5 {[%emt 0:00:11]} 45. Rxb8 {[%emt 0:00:12]} 1-0

[Event "FISCA Open 2022"]
[Site "Cap Aurora"]
[Date "2022.06.23"]
[Round "2.6"]
[White "Ionica, Robert"]
[Black "Breahna, Radu"]
[Result "1/2-1/2"]
[ECO "D02"]
[WhiteElo "1731"]
[BlackElo "2142"]
[Annotator "NA RC"]
[PlyCount "34"]
[EventDate "2022.06.22"]
[EventType "swiss"]
[EventCountry "ROU"]
[SourceTitle "playchess.com"]
[Source "ChessBase"]
[SourceQuality "1"]
[TimeControl "5400+30"]

1. d4 {[%emt 0:00:30]} Nf6 {[%emt 0:03:45]} 2. Bf4 {[%emt 0:00:35]} d5 {[%emt 0:02:24]} 3. Nf3 {[%emt 0:00:18]} c5 {[%emt 0:00:41]} 4. c3 {[%emt 0:00:36]} Qb6 {[%emt 0:01:08]} 5. Qb3 {[%emt 0:01:55]} Nc6 {[%emt 0:01:44]} 6. e3 {[%emt 0:03:17]} c4 {[%emt 0:01:48]} 7. Qxb6 {[%emt 0:01:26]} axb6 {[%emt 0:00:38]} 8. Nbd2 {[%emt 0:00:15]} b5 {[%emt 0:05:53]} 9. Be2 $11 {[%emt 0:01:14]} Bf5 {[%emt 0:06:29]} 10. Ne5 {[%emt 0:07:31]} h6 {[%emt 0:10:07]} 11. f3 {[%emt 0:09:23]} Nh5 {[%emt 0:09:50]} 12. g4 {[%emt 0:08:31]} Nxf4 {[%emt 0:00:28]} 13. gxf5 {[%emt 0:01:33]} Ng2+ {[%emt 0:15:39]} 14. Kf2 {[%emt 0:00:18]} Nh4 {[%emt 0:00:09]} 15. e4 {[%emt 0:00:31]} e6 {[%emt 0:02:49]} 16. fxe6 {[%emt 0:02:35]} Nxe5 17. dxe5 {[%emt 0:00:52]} fxe6 {[%emt 0:08:30]} 1/2-1/2

[Event "FISCA Open 2022"]
[Site "Cap Aurora"]
[Date "2022.06.23"]
[Round "2.7"]
[White "Tarciuc, Ianis-Mihai"]
[Black "Mintau, Andrei-Catalin"]
[Result "0-1"]
[ECO "A20"]
[WhiteElo "1695"]
[BlackElo "2130"]
[Annotator "NA RC"]
[PlyCount "126"]
[EventDate "2022.06.22"]
[EventType "swiss"]
[EventCountry "ROU"]
[SourceTitle "playchess.com"]
[Source "ChessBase"]
[SourceQuality "1"]
[TimeControl "5400+30"]

1. c4 {[%emt 0:00:04]} e5 {[%emt 0:00:06]} 2. g3 {[%emt 0:00:16]} Nf6 {[%emt 0:00:11]} 3. Bg2 {[%emt 0:00:10]} Nc6 {[%emt 0:00:04]} 4. d3 {[%emt 0:00:49]} Bb4+ {[%emt 0:02:45]} 5. Bd2 {[%emt 0:00:34]} Bxd2+ {[%emt 0:01:06]} 6. Qxd2 {[%emt 0:00:23]} O-O {[%emt 0:00:35]} 7. Nc3 {[%emt 0:00:50]} d6 {[%emt 0:00:06]} 8. Nf3 {[%emt 0:11:56]} h6 {[%emt 0:12:30]} 9. O-O {[%emt 0:03:33]} a5 {[%emt 0:05:49]} 10. b3 {[%emt 0:07:23]} Ne7 {[%emt 0:04:07]} 11. Rab1 {[%emt 0:09:08]} c6 {[%emt 0:05:42]} 12. Rfd1 {[%emt 0:08:14]} Qc7 {[%emt 0:01:40]} 13. Ne1 {[%emt 0:15:47]} Bf5 {[%emt 0:02:17]} 14. e4 {[%emt 0:03:17]} Bg4 {[%emt 0:03:46]} 15. Rdc1 {[%emt 0:01:33]} Nd7 {[%emt 0:02:24]} 16. h3 {[%emt 0:09:54]} Be6 {[%emt 0:06:22]} 17. d4 {[%emt 0:05:43]} f6 {[%emt 0:22:28]} 18. d5 {[%emt 0:00:57]} Bf7 {[%emt 0:00:07]} 19. Nd3 {[%emt 0:03:11]} f5 {[%emt 0:03:20]} 20. exf5 {[%emt 0:09:56]} Nxf5 {[%emt 0:02:23]} 21. Be4 {[%emt 0:00:37]} Nd4 {[%emt 0:03:15]} 22. Ne2 {[%emt 0:01:23]} Nf6 {[%emt 0:05:21]} 23. Bg2 {[%emt 0:00:41]} Nxe2+ {[%emt 0:01:30]} 24. Qxe2 {[%emt 0:00:04]} cxd5 {[%emt 0:00:13]} 25. cxd5 {[%emt 0:01:07]} Qd7 {[%emt 0:00:52]} 26. Rd1 {[%emt 0:04:32]} e4 {[%emt 0:03:01]} 27. Nb2 {[%emt 0:01:15]} Nxd5 {[%emt 0:01:35]} 28. Qd2 {[%emt 0:00:31]} Rfc8 {[%emt 0:01:09]} 29. Re1 {[%emt 0:00:18]} Nc3 {[%emt 0:00:38]} 30. Rbc1 {[%emt 0:00:20]} Nxa2 {[%emt 0:00:22]} 31. Nc4 {[%emt 0:00:38]} Nb4 {[%emt 0:00:46]} 32. Qxd6 {[%emt 0:00:36]} Qxd6 {[%emt 0:04:35]} 33. Nxd6 {[%emt 0:00:02]} Rxc1 {[%emt 0:00:07]} 34. Rxc1 {[%emt 0:00:04]} Bxb3 {[%emt 0:06:18]} 35. Bxe4 {[%emt 0:01:18]} a4 {[%emt 0:00:00]} 36. Nxb7 {[%emt 0:00:18]} Bd5 {[%emt 0:00:00]} 37. Bxd5+ {[%emt 0:00:07]} Nxd5 {[%emt 0:00:00]} 38. Ra1 {[%emt 0:01:11]} a3 {[%emt 0:00:00]} 39. Nd6 {[%emt 0:00:35]} a2 {[%emt 0:00:00]} 40. Nb5 {[%emt 0:00:31]} Nb4 {[%emt 0:00:00]} 41. Nd4 {[%emt 0:00:16]} Rd8 {[%emt 0:00:00]} 42. Nb3 {[%emt 0:00:51]} Rd3 {[%emt 0:00:00]} 43. Nc1 {[%emt 0:00:34]} Rd1+ {[%emt 0:00:10]} 44. Kg2 {[%emt 0:00:04]} Rxc1 {[%emt 0:00:12]} 45. Rxc1 {[%emt 0:00:07]} Nc2 {[%emt 0:00:01]} 46. Rxc2 {[%emt 0:01:17]} a1=Q {[%emt 0:00:01]} 47. Re2 {[%emt 0:00:22]} Kf7 {[%emt 0:00:14]} 48. f3 {[%emt 0:00:20]} Kf6 {[%emt 0:00:07]} 49. h4 {[%emt 0:00:13]} Qd1 {[%emt 0:00:15]} 50. Rf2 {[%emt 0:00:06]} Ke5 {[%emt 0:00:05]} 51. Rf1 {[%emt 0:00:30]} Qe2+ {[%emt 0:00:31]} 52. Rf2 {[%emt 0:00:04]} Qd3 {[%emt 0:00:05]} 53. Ra2 {[%emt 0:00:38]} Kd4 {[%emt 0:00:09]} 54. Rf2 {[%emt 0:00:41]} Ke3 {[%emt 0:00:05]} 55. Kg1 {[%emt 0:00:44]} Qb1+ {[%emt 0:00:37]} 56. Kg2 {[%emt 0:00:13]} Qd1 {[%emt 0:00:03]} 57. h5 {[%emt 0:01:14]} Qd5 {[%emt 0:01:01]} 58. g4 {[%emt 0:00:08]} Kf4 {[%emt 0:00:13]} 59. Rf1 {[%emt 0:00:16]} Qd2+ {[%emt 0:00:18]} 60. Rf2 {[%emt 0:00:03]} Qe1 {[%emt 0:00:24]} 61. Rf1 {[%emt 0:00:47]} Qg3+ {[%emt 0:00:12]} 62. Kh1 {[%emt 0:00:03]} Qxf3+ {[%emt 0:01:03]} 63. Rxf3+ {[%emt 0:00:02]} Kxf3 {[%emt 0:00:00]} 0-1

[Event "FISCA Open 2022"]
[Site "Cap Aurora"]
[Date "2022.06.23"]
[Round "2.9"]
[White "Chivu, Razvan-Gabriel"]
[Black "Trifoi, Mihaela-Ioana"]
[Result "0-1"]
[ECO "B13"]
[WhiteElo "1686"]
[BlackElo "1949"]
[Annotator "NA RC"]
[PlyCount "86"]
[EventDate "2022.06.22"]
[EventType "swiss"]
[EventCountry "ROU"]
[SourceTitle "playchess.com"]
[Source "ChessBase"]
[SourceQuality "1"]
[TimeControl "5400+30"]

1. e4 {[%emt 0:00:20]} c6 {[%emt 0:00:07]} 2. d4 {[%emt 0:00:38]} d5 {[%emt 0:00:07]} 3. exd5 {[%emt 0:00:12]} cxd5 {[%emt 0:00:08]} 4. Bd3 {[%emt 0:00:01]} Nf6 $14 {[%emt 0:00:09]} 5. Bg5 {[%emt 0:00:48]} Bg4 {[%emt 0:01:33]} 6. f3 {[%emt 0:01:48]} Bh5 {[%emt 0:00:53]} 7. Ne2 {[%emt 0:00:31]} e6 {[%emt 0:00:34]} 8. Nf4 {[%emt 0:00:30]} Bg6 {[%emt 0:00:15]} 9. Nxg6 {[%emt 0:00:34]} hxg6 {[%emt 0:00:06]} 10. c3 {[%emt 0:00:31]} Bd6 {[%emt 0:00:27]} 11. Bb5+ {[%emt 0:03:35]} Nc6 {[%emt 0:00:29]} 12. Kf2 {[%emt 0:16:18]} Ne4+ {[%emt 0:09:54]} 13. fxe4 {[%emt 0:00:07]} Qxg5 {[%emt 0:00:30]} 14. e5 {[%emt 0:00:30]} Be7 {[%emt 0:00:30]} 15. Nd2 {[%emt 0:00:30]} a6 {[%emt 0:00:30]} 16. Nf3 {[%emt 0:00:30]} Qf4 {[%emt 0:00:30]} 17. Bxc6+ {[%emt 0:00:30]} bxc6 {[%emt 0:00:30]} 18. Qd2 {[%emt 0:00:30]} Qxd2+ {[%emt 0:00:30]} 19. Nxd2 {[%emt 0:00:30]} c5 {[%emt 0:00:30]} 20. Rab1 {[%emt 0:00:30]} Kd7 {[%emt 0:00:30]} 21. b4 {[%emt 0:00:30]} cxd4 {[%emt 0:00:30]} 22. cxd4 {[%emt 0:00:30]} Rhc8 {[%emt 0:00:30]} 23. Rb2 {[%emt 0:00:30]} Ra7 {[%emt 0:00:30]} 24. a3 {[%emt 0:00:30]} Rac7 {[%emt 0:00:30]} 25. Rhb1 {[%emt 0:00:30]} Rc2 {[%emt 0:00:30]} 26. Kf1 {[%emt 0:00:30]} R2c3 {[%emt 0:00:30]} 27. Nb3 {[%emt 0:00:30]} R3c7 {[%emt 0:17:36]} 28. Nd2 {[%emt 0:21:15]} Rc3 {[%emt 0:06:44]} 29. Nb3 {[%emt 0:00:42]} R8c4 {[%emt 0:00:45]} 30. Rd1 {[%emt 0:10:30]} Rc7 {[%emt 0:10:25]} 31. Ke2 {[%emt 0:03:10]} Kc6 {[%emt 0:00:46]} 32. Kd2 {[%emt 0:01:32]} Kb5 {[%emt 0:00:50]} 33. Nc5 {[%emt 0:00:58]} Rxa3 {[%emt 0:00:15]} 34. Rf1 {[%emt 0:02:04]} Bg5+ {[%emt 0:02:08]} 35. Kc2 {[%emt 0:00:32]} Kc4 {[%emt 0:01:42]} 36. Rd1 {[%emt 0:25:03]} Be3 {[%emt 0:00:29]} 37. Kb1 {[%emt 0:06:25]} Bxd4 {[%emt 0:00:46]} 38. Nxa6 {[%emt 0:01:53]} Bxb2 {[%emt 0:06:20]} 39. Nxc7 {[%emt 0:00:26]} Ra1+ {[%emt 0:00:05]} 40. Kc2 {[%emt 0:00:05]} Rxd1 {[%emt 0:00:06]} 41. Kxd1 {[%emt 0:00:02]} Bxe5 {[%emt 0:00:08]} 42. Na6 {[%emt 0:00:14]} Bxh2 {[%emt 0:00:20]} 43. Ke2 {[%emt 0:00:11]} Bd6 {[%emt 0:00:11]} 0-1

[Event "FISCA Open 2022"]
[Site "Cap Aurora"]
[Date "2022.06.23"]
[Round "2.10"]
[White "Capragiu, Matei-Stefan"]
[Black "Rata, Anamaria"]
[Result "1-0"]
[ECO "E01"]
[WhiteElo "1925"]
[BlackElo "1656"]
[Annotator "NA RC"]
[PlyCount "73"]
[EventDate "2022.06.22"]
[EventType "swiss"]
[EventCountry "ROU"]
[SourceTitle "playchess.com"]
[Source "ChessBase"]
[SourceQuality "1"]
[TimeControl "5400+30"]

1. d4 {[%emt 0:00:11]} d5 {[%emt 0:00:44]} 2. c4 {[%emt 0:00:08]} c6 {[%emt 0:00:04]} 3. Nf3 {[%emt 0:00:33]} Nf6 {[%emt 0:00:09]} 4. g3 {[%emt 0:00:11]} e6 {[%emt 0:00:07]} 5. Bg2 {[%emt 0:00:15]} Nbd7 {[%emt 0:01:11]} 6. O-O {[%emt 0:01:02]} b6 {[%emt 0:02:17]} 7. b3 {[%emt 0:15:09]} Bb7 {[%emt 0:01:03]} 8. Nc3 {[%emt 0:04:25]} Be7 {[%emt 0:07:48]} 9. Qc2 {[%emt 0:06:45]} Rc8 {[%emt 0:05:52]} 10. e4 {[%emt 0:01:50]} dxe4 {[%emt 0:03:25]} 11. Nxe4 {[%emt 0:02:47]} O-O {[%emt 0:13:12]} 12. Ne5 {[%emt 0:03:25]} Nxe4 {[%emt 0:17:22]} 13. Qxe4 {[%emt 0:08:52]} Nf6 {[%emt 0:05:48]} 14. Qe3 {[%emt 0:03:17]} Qc7 $15 {[%emt 0:12:22]} 15. Nd3 {[%emt 0:09:02]} Rfd8 {[%emt 0:07:36]} 16. Bb2 {[%emt 0:01:05]} Ng4 {[%emt 0:04:25]} 17. Qe4 {[%emt 0:09:59]} Nh6 {[%emt 0:00:53]} 18. Rfe1 {[%emt 0:01:41]} Nf5 {[%emt 0:02:22]} 19. Rad1 {[%emt 0:01:18]} Bf6 {[%emt 0:02:42]} 20. Ne5 {[%emt 0:04:49]} Ne7 {[%emt 0:01:54]} 21. Ng4 {[%emt 0:03:22]} Rd7 {[%emt 0:07:01]} 22. Nxf6+ {[%emt 0:05:26]} gxf6 {[%emt 0:00:08]} 23. Qh4 {[%emt 0:01:17]} Nf5 {[%emt 0:01:23]} 24. Qxf6 {[%emt 0:00:43]} Qd8 {[%emt 0:00:11]} 25. Qe5 {[%emt 0:01:10]} Qg5 {[%emt 0:02:02]} 26. d5 {[%emt 0:01:08]} f6 {[%emt 0:00:19]} 27. Qxe6+ {[%emt 0:00:28]} Rf7 {[%emt 0:00:04]} 28. dxc6 {[%emt 0:00:18]} Ba6 {[%emt 0:00:15]} 29. Bd5 {[%emt 0:01:12]} Rcf8 {[%emt 0:00:33]} 30. Qxf6 {[%emt 0:02:49]} Qxf6 {[%emt 0:00:07]} 31. Bxf6 {[%emt 0:00:06]} h6 {[%emt 0:00:32]} 32. c7 {[%emt 0:00:44]} Kh7 {[%emt 0:00:12]} 33. Bxf7 {[%emt 0:00:08]} Rxf7 {[%emt 0:00:05]} 34. Bd8 {[%emt 0:01:01]} Bc8 {[%emt 0:00:27]} 35. g4 {[%emt 0:00:59]} Ng7 {[%emt 0:00:11]} 36. Re7 {[%emt 0:03:13]} Rxe7 {[%emt 0:00:05]} 37. Bxe7 {[%emt 0:08:12]} 1-0

[Event "FISCA Open 2022"]
[Site "Cap Aurora"]
[Date "2022.06.23"]
[Round "2.11"]
[White "Iordache, Alexia-Andreea"]
[Black "Ribarov, Valerij"]
[Result "0-1"]
[ECO "B78"]
[WhiteElo "1658"]
[BlackElo "1918"]
[Annotator "NA RC"]
[PlyCount "104"]
[EventDate "2022.06.22"]
[EventType "swiss"]
[EventCountry "ROU"]
[SourceTitle "playchess.com"]
[Source "ChessBase"]
[SourceQuality "1"]
[TimeControl "5400+30"]

1. e4 {[%emt 0:00:01]} c5 {[%emt 0:00:13]} 2. Nf3 {[%emt 0:00:04]} d6 {[%emt 0:00:07]} 3. d4 {[%emt 0:00:04]} cxd4 {[%emt 0:00:02]} 4. Nxd4 {[%emt 0:00:04]} Nf6 {[%emt 0:00:07]} 5. Nc3 {[%emt 0:00:04]} g6 {[%emt 0:00:21]} 6. Be3 {[%emt 0:00:11]} Bg7 {[%emt 0:00:05]} 7. f3 {[%emt 0:00:05]} O-O {[%emt 0:00:21]} 8. Bc4 {[%emt 0:00:04]} Nc6 {[%emt 0:00:22]} 9. Qd2 {[%emt 0:00:04]} Bd7 {[%emt 0:00:55]} 10. h4 {[%emt 0:01:11]} h5 {[%emt 0:00:18]} 11. O-O-O {[%emt 0:01:09]} Rc8 {[%emt 0:07:33]} 12. Bb3 {[%emt 0:00:07]} Ne5 {[%emt 0:00:34]} 13. g4 {[%emt 0:00:40]} hxg4 {[%emt 0:02:14]} 14. h5 {[%emt 0:00:08]} Nxh5 {[%emt 0:13:28]} 15. Bh6 {[%emt 0:00:45]} Kh7 {[%emt 0:18:13]} 16. Bxg7 {[%emt 0:20:53]} Kxg7 {[%emt 0:00:03]} 17. Rxh5 {[%emt 0:07:18]} gxh5 {[%emt 0:00:02]} 18. Qg5+ {[%emt 0:00:14]} Ng6 {[%emt 0:00:24]} 19. Nf5+ {[%emt 0:02:15]} Bxf5 {[%emt 0:03:50]} 20. exf5 {[%emt 0:00:18]} e6 {[%emt 0:11:47]} 21. Qxd8 {[%emt 0:00:24]} Rcxd8 {[%emt 0:00:56]} 22. fxg6 {[%emt 0:00:13]} Kxg6 {[%emt 0:00:15]} 23. Rg1 {[%emt 0:04:38]} Kg5 {[%emt 0:00:51]} 24. fxg4 {[%emt 0:01:20]} hxg4 {[%emt 0:00:01]} 25. Ne4+ {[%emt 0:02:29]} Kf5 {[%emt 0:04:24]} 26. Nf2 {[%emt 0:02:58]} Rg8 {[%emt 0:00:32]} 27. c3 {[%emt 0:01:55]} Kf4 {[%emt 0:04:28]} 28. Nd3+ {[%emt 0:08:27]} Kg5 {[%emt 0:09:33]} 29. Nf2 {[%emt 0:02:07]} Kh4 {[%emt 0:06:57]} 30. Ne4 {[%emt 0:05:05]} g3 {[%emt 0:03:40]} 31. Rh1+ {[%emt 0:03:22]} Kg4 {[%emt 0:00:02]} 32. Nf6+ {[%emt 0:00:07]} Kf3 {[%emt 0:00:18]} 33. Nxg8 {[%emt 0:00:42]} g2 {[%emt 0:04:33]} 34. Bd1+ {[%emt 0:06:18]} Kf2 {[%emt 0:00:57]} 35. Rh2 {[%emt 0:02:05]} Rxg8 {[%emt 0:00:26]} 36. Bh5 {[%emt 0:01:40]} Rg7 {[%emt 0:00:53]} 37. Kd2 {[%emt 0:00:40]} f5 {[%emt 0:01:26]} 38. Be8 {[%emt 0:00:43]} e5 {[%emt 0:01:23]} 39. b4 {[%emt 0:00:30]} a6 {[%emt 0:00:30]} 40. c4 {[%emt 0:00:15]} e4 {[%emt 0:00:16]} 41. Bh5 {[%emt 0:00:12]} f4 {[%emt 0:00:19]} 42. b5 {[%emt 0:00:36]} f3 {[%emt 0:00:12]} 43. Bxf3 {[%emt 0:00:45]} Kxf3 {[%emt 0:00:29]} 44. bxa6 {[%emt 0:00:14]} bxa6 {[%emt 0:00:02]} 45. c5 {[%emt 0:00:05]} g1=Q {[%emt 0:00:20]} 46. Re2 {[%emt 0:00:05]} d5 {[%emt 0:00:26]} 47. c6 {[%emt 0:30:26]} Qd4+ 48. Kc2 Kxe2 49. a4 Rg3 50. c7 Rc3+ 51. Kb2 Qb4+ 52. Ka2 {[%emt 0:00:00]} Ra3# {[%emt 0:02:45]} 0-1

[Event "FISCA Open 2022"]
[Site "Cap Aurora"]
[Date "2022.06.23"]
[Round "2.12"]
[White "Aldea, Maria-Antonia"]
[Black "Corbu, George-Alexandru"]
[Result "1/2-1/2"]
[ECO "E05"]
[WhiteElo "1655"]
[BlackElo "1914"]
[Annotator "NA RC"]
[PlyCount "70"]
[EventDate "2022.06.22"]
[EventType "swiss"]
[EventCountry "ROU"]
[SourceTitle "playchess.com"]
[Source "ChessBase"]
[SourceQuality "1"]
[TimeControl "5400+30"]

1. d4 {[%emt 1:31:00]} d5 {[%emt 1:31:00]} 2. Nf3 {[%emt 0:00:30]} e6 {[%emt 0:00:30]} 3. g3 {[%emt 0:00:30]} Nf6 {[%emt 0:00:30]} 4. Bg2 {[%emt 0:00:30]} Be7 {[%emt 0:00:30]} 5. O-O {[%emt 0:00:30]} O-O {[%emt 0:00:30]} 6. c4 {[%emt 0:00:30]} dxc4 {[%emt 0:00:30]} 7. Nbd2 {[%emt 0:00:30]} c5 {[%emt 0:00:30]} 8. Nxc4 {[%emt 0:00:30]} Nc6 {[%emt 0:00:30]} 9. dxc5 {[%emt 0:00:30]} Bxc5 {[%emt 0:00:30]} 10. a3 $14 {[%emt 0:01:00]} a5 {[%emt 0:00:30]} 11. b3 {[%emt 0:00:30]} Ra6 {[%emt 0:00:30]} 12. Bb2 {[%emt 0:00:30]} b5 {[%emt 0:00:30]} 13. Nce5 {[%emt 0:00:30]} Nxe5 {[%emt 0:00:30]} 14. Nxe5 {[%emt 0:00:30]} Nd7 {[%emt 0:00:30]} 15. Nd3 Bd6 {[%emt 0:00:30]} 16. Rc1 {[%emt 0:01:00]} Qb6 {[%emt 0:00:30]} 17. Rc6 {[%emt 0:00:30]} Qb8 18. Qd2 {[%emt 0:00:30]} b4 {[%emt 0:01:00]} 19. axb4 {[%emt 0:00:30]} axb4 {[%emt 0:00:30]} 20. Rxa6 {[%emt 0:00:30]} Bxa6 {[%emt 0:00:30]} 21. Ra1 {[%emt 0:00:30]} Qb6 {[%emt 0:00:30]} 22. Rc1 {[%emt 0:00:30]} Rc8 23. Rxc8+ {[%emt 0:00:30]} Bxc8 {[%emt 0:01:00]} 24. Qc2 {[%emt 0:00:30]} Ba6 {[%emt 0:00:30]} 25. Be4 f5 {[%emt 0:00:30]} 26. Bg2 {[%emt 0:01:00]} Kf7 {[%emt 0:00:30]} 27. Qd2 {[%emt 0:00:30]} h6 28. e3 {[%emt 0:00:30]} e5 {[%emt 0:01:00]} 29. Bd5+ {[%emt 0:00:30]} Ke7 {[%emt 0:00:30]} 30. Bg2 {[%emt 0:00:30]} g5 31. h3 {[%emt 0:00:30]} Qb5 {[%emt 0:01:00]} 32. Nc1 {[%emt 0:00:30]} e4 {[%emt 0:00:30]} 33. g4 {[%emt 0:00:30]} Bb7 {[%emt 0:00:30]} 34. Ne2 {[%emt 0:00:30]} fxg4 {[%emt 0:00:30]} 35. hxg4 {[%emt 0:00:30]} Qd5 {[%emt 0:00:30]} 1/2-1/2

[Event "FISCA Open 2022"]
[Site "Cap Aurora"]
[Date "2022.06.23"]
[Round "2.13"]
[White "Popa, Marian"]
[Black "Stancu, Ovidiu-Grigore"]
[Result "0-1"]
[ECO "E38"]
[WhiteElo "1655"]
[BlackElo "1867"]
[Annotator "NA RC"]
[PlyCount "76"]
[EventDate "2022.06.22"]
[EventType "swiss"]
[EventCountry "ROU"]
[SourceTitle "playchess.com"]
[Source "ChessBase"]
[SourceQuality "1"]
[TimeControl "5400+30"]

1. d4 {[%emt 0:00:04]} Nf6 {[%emt 0:00:06]} 2. c4 {[%emt 0:00:09]} e6 {[%emt 0:00:10]} 3. Nf3 {[%emt 0:00:19]} c5 {[%emt 0:00:07]} 4. Nc3 {[%emt 0:01:20]} cxd4 {[%emt 0:00:19]} 5. Nxd4 {[%emt 0:00:10]} Bb4 {[%emt 0:00:46]} 6. Qc2 {[%emt 0:01:31]} Nc6 {[%emt 0:02:08]} 7. e3 {[%emt 0:01:17]} Qb6 {[%emt 0:02:55]} 8. Nf3 {[%emt 0:01:49]} d5 {[%emt 0:02:50]} 9. Bd2 {[%emt 0:00:57]} dxc4 {[%emt 0:04:03]} 10. Bxc4 {[%emt 0:00:46]} Bd7 {[%emt 0:00:52]} 11. a3 {[%emt 0:02:14]} Be7 {[%emt 0:00:18]} 12. O-O {[%emt 0:02:11]} Rc8 {[%emt 0:00:16]} 13. Ba2 $11 {[%emt 0:01:51]} Na5 {[%emt 0:03:09]} 14. Ne5 {[%emt 0:11:40]} Bb5 {[%emt 0:04:03]} 15. Rfc1 {[%emt 0:03:17]} O-O {[%emt 0:01:06]} 16. b4 {[%emt 0:03:56]} Nc6 {[%emt 0:06:42]} 17. Nxc6 {[%emt 0:06:09]} Bxc6 {[%emt 0:03:17]} 18. Qd1 {[%emt 0:08:48]} Rfd8 {[%emt 0:00:37]} 19. Qe2 {[%emt 0:00:26]} a6 {[%emt 0:01:56]} 20. Be1 {[%emt 0:01:31]} Rc7 {[%emt 0:01:41]} 21. Rc2 {[%emt 0:03:44]} Rcd7 {[%emt 0:04:03]} 22. Rd1 {[%emt 0:01:06]} Rxd1 {[%emt 0:00:30]} 23. Nxd1 {[%emt 0:00:13]} Ne4 {[%emt 0:04:47]} 24. Nb2 {[%emt 0:02:34]} Nd6 {[%emt 0:06:52]} 25. Bc3 {[%emt 0:02:41]} Nb5 {[%emt 0:00:35]} 26. Nc4 {[%emt 0:08:32]} Nxc3 {[%emt 0:00:27]} 27. Rxc3 {[%emt 0:00:27]} Qb5 {[%emt 0:01:31]} 28. Rc1 {[%emt 0:00:32]} Qd5 {[%emt 0:01:25]} 29. f3 {[%emt 0:01:33]} Bb5 {[%emt 0:00:15]} 30. Kf2 {[%emt 0:02:27]} Qh5 {[%emt 0:06:22]} 31. Kg1 {[%emt 0:01:42]} Bg5 {[%emt 0:04:07]} 32. h3 {[%emt 0:04:54]} Qh6 {[%emt 0:03:34]} 33. f4 {[%emt 0:00:22]} Be7 {[%emt 0:02:23]} 34. Qe1 {[%emt 0:02:15]} Bh4 {[%emt 0:04:36]} 35. Qc3 {[%emt 0:01:24]} Qh5 {[%emt 0:01:01]} 36. g4 {[%emt 0:01:15]} Qd5 {[%emt 0:00:26]} 37. Qc2 {[%emt 0:06:17]} Bc6 {[%emt 0:03:11]} 38. Qh2 {[%emt 0:00:52]} Qd1+ {[%emt 0:00:26]} 0-1